[Event "Kvibergspelen 2018"]
[Site "Prioritet Serneke Arena, Krutvagen 2, Gothenburg, Sweden"]
[Date "2018.04.21"]
[Round "5.9"]
[White "Fransson, Lennart"]
[Black "Pantzar, Milton"]
[Result "0-1"]
[TimeControl "15 minutes + 5 seconds per move from move one (Round 1 - 4) / 90 minutes + 30 seconds per move from move one (Round 5 - 8)"]
[BlackTitle "FM"]
[WhiteFideId "1706756"]
[BlackFideId "1721003"]
[WhiteElo "2035"]
[BlackElo "2295"]

1. c4 {[%clk 01:26:39]} {[%emt 00:04:20]} Nf6 {[%clk 01:30:51]} {[%emt
00:00:09]} 2. g3 {[%clk 01:26:34]} {[%emt 00:00:34]} c6 {[%clk 01:31:07]}
{[%emt 00:00:15]} 3. Bg2 {[%clk 01:26:06]} {[%emt 00:00:57]} d5 {[%clk
01:31:30]} {[%emt 00:00:07]} 4. Qc2 {[%clk 01:25:20]} {[%emt 00:01:15]} e5
{[%clk 01:27:13]} {[%emt 00:04:48]} 5. d3 {[%clk 01:23:38]} {[%emt 00:02:11]}
d4 {[%clk 01:20:38]} {[%emt 00:07:06]} 6. Nf3 {[%clk 01:22:31]} {[%emt
00:01:37]} Nbd7 {[%clk 01:16:11]} {[%emt 00:04:57]} 7. O-O {[%clk 01:22:41]}
{[%emt 00:00:20]} Bd6 {[%clk 01:13:30]} {[%emt 00:03:12]} 8. Bg5 {[%clk
01:17:07]} {[%emt 00:06:03]} h6 {[%clk 01:07:21]} {[%emt 00:06:39]} 9. Bxf6
{[%clk 01:13:00]} {[%emt 00:04:36]} Nxf6 {[%clk 01:04:16]} {[%emt 00:03:35]} 10.
Nbd2 {[%clk 01:11:21]} {[%emt 00:02:09]} Qe7 {[%clk 01:00:26]} {[%emt
00:04:20]} 11. h3 {[%clk 00:56:09]} {[%emt 00:15:42]} O-O {[%clk 00:53:52]}
{[%emt 00:07:04]} 12. Rfe1 {[%clk 00:55:16]} {[%emt 00:01:22]} Re8 {[%clk
00:47:45]} {[%emt 00:06:38]} 13. e3 {[%clk 00:50:53]} {[%emt 00:04:54]} dxe3
{[%clk 00:46:33]} {[%emt 00:01:42]} 14. Rxe3 {[%clk 00:51:17]} {[%emt
00:00:05]} Bf5 {[%clk 00:37:10]} {[%emt 00:09:55]} 15. Rae1 {[%clk 00:41:21]}
{[%emt 00:10:25]} Rad8 {[%clk 00:34:13]} {[%emt 00:03:28]} 16. Kh2 {[%clk
00:31:13]} {[%emt 00:10:37]} Nd7 {[%clk 00:22:25]} {[%emt 00:12:17]} 17. a3
{[%clk 00:30:38]} {[%emt 00:01:05]} Qf8 {[%clk 00:16:28]} {[%emt 00:06:28]} 18.
Qc3 {[%clk 00:26:24]} {[%emt 00:04:43]} Bg6 {[%clk 00:11:39]} {[%emt 00:05:19]}
19. d4 {[%clk 00:24:29]} {[%emt 00:02:25]} exd4 {[%clk 00:11:47]} {[%emt
00:00:24]} 20. Nxd4 {[%clk 00:23:57]} {[%emt 00:01:01]} Rxe3 {[%clk 00:10:34]}
{[%emt 00:01:43]} 21. Qxe3 {[%clk 00:23:12]} {[%emt 00:01:14]} Ne5 {[%clk
00:08:27]} {[%emt 00:02:39]} 22. Be4 {[%clk 00:21:57]} {[%emt 00:01:44]} Bc5
{[%clk 00:07:31]} {[%emt 00:01:27]} 23. N2b3 {[%clk 00:20:54]} {[%emt
00:01:32]} Bxd4 {[%clk 00:04:33]} {[%emt 00:03:29]} 24. Nxd4 {[%clk 00:20:58]}
{[%emt 00:00:25]} Nxc4 {[%clk 00:04:44]} {[%emt 00:00:20]} 25. Qc3 {[%clk
00:20:34]} {[%emt 00:00:54]} Bxe4 {[%clk 00:03:28]} {[%emt 00:01:47]} 26. Rxe4
{[%clk 00:20:54]} {[%emt 00:00:07]} Nd6 {[%clk 00:03:26]} {[%emt 00:00:33]} 27.
Rg4 {[%clk 00:20:16]} {[%emt 00:01:08]} Re8 {[%clk 00:03:09]} {[%emt 00:00:47]}
28. Qa5 {[%clk 00:19:09]} {[%emt 00:01:37]} a6 {[%clk 00:02:44]} {[%emt
00:00:55]} 29. Qd2 {[%clk 00:17:48]} {[%emt 00:01:50]} Re4 {[%clk 00:01:58]}
{[%emt 00:01:16]} 30. Rxe4 {[%clk 00:15:35]} {[%emt 00:02:43]} Nxe4 {[%clk
00:02:25]} {[%emt 00:00:04]} 31. Qf4 {[%clk 00:15:42]} {[%emt 00:00:22]} Nd6
{[%clk 00:02:10]} {[%emt 00:00:45]} 32. Nf5 {[%clk 00:13:43]} {[%emt 00:02:29]}
Nxf5 {[%clk 00:02:16]} {[%emt 00:00:24]} 33. Qxf5 {[%clk 00:14:10]} {[%emt
00:00:02]} Qd8 {[%clk 00:02:25]} {[%emt 00:00:21]} 34. Qe5 {[%clk 00:12:36]}
{[%emt 00:02:04]} Qd7 {[%clk 00:01:03]} {[%emt 00:01:54]} 35. b4 {[%clk
00:12:39]} {[%emt 00:00:25]} Kh7 {[%clk 00:00:59]} {[%emt 00:00:35]} 36. Qe3
{[%clk 00:08:42]} {[%emt 00:04:26]} Qf5 {[%clk 00:00:50]} {[%emt 00:00:39]} 37.
Kg2 {[%clk 00:08:56]} {[%emt 00:00:16]} a5 {[%clk 00:00:52]} {[%emt 00:00:30]}
38. bxa5 {[%clk 00:09:04]} {[%emt 00:00:21]} Qxa5 {[%clk 00:01:02]} {[%emt
00:00:20]} 39. Qd3 {[%clk 00:08:48]} {[%emt 00:00:45]} g6 {[%clk 00:01:16]}
{[%emt 00:00:17]} 40. Qe3 {[%clk 00:06:16]} {[%emt 00:03:01]} Qd5+ {[%clk
00:01:35]} {[%emt 00:00:11]} 41. Kg1 {[%clk 00:06:03]} {[%emt 00:00:44]} c5
{[%clk 00:01:54]} {[%emt 00:00:11]} 42. h4 {[%clk 00:06:24]} {[%emt 00:00:08]}
c4 {[%clk 00:01:21]} {[%emt 00:01:04]} 43. Kf1 {[%clk 00:06:07]} {[%emt
00:00:47]} Qd1+ {[%clk 00:01:17]} {[%emt 00:00:33]} 44. Kg2 {[%clk 00:06:29]}
{[%emt 00:00:08]} Qd7 {[%clk 00:00:44]} {[%emt 00:01:03]} 45. Qc3 {[%clk
00:06:24]} {[%emt 00:00:35]} Qd5+ {[%clk 00:00:49]} {[%emt 00:00:26]} 46. Kf1
{[%clk 00:06:47]} {[%emt 00:00:07]} Qd1+ {[%clk 00:01:05]} {[%emt 00:00:14]} 47.
Kg2 {[%clk 00:07:09]} {[%emt 00:00:08]} Qb3 {[%clk 00:00:45]} {[%emt 00:00:50]}
48. Qf6 {[%clk 00:06:45]} {[%emt 00:00:54]} c3 {[%clk 00:00:55]} {[%emt
00:00:22]} 49. h5 {[%clk 00:06:59]} {[%emt 00:00:15]} g5 {[%clk 00:00:34]}
{[%emt 00:00:51]} 50. Qf5 {[%clk 00:07:23]} {[%emt 00:00:06]} Kg8 {[%clk
00:00:55]} {[%emt 00:00:09]} 51. Qd3 {[%clk 00:06:55]} {[%emt 00:00:58]} Qxa3
{[%clk 00:01:09]} {[%emt 00:00:16]} 52. Qd8+ {[%clk 00:06:47]} {[%emt
00:00:37]} Qf8 {[%clk 00:01:23]} {[%emt 00:00:17]} 53. Qd3 {[%clk 00:07:03]}
{[%emt 00:00:14]} Qc8 {[%clk 00:01:41]} {[%emt 00:00:12]} 0-1

[Event "Kvibergspelen 2018"]
[Site "Prioritet Serneke Arena, Krutvagen 2, Gothenburg, Sweden"]
[Date "2018.04.21"]
[Round "5.10"]
[White "Nguyen, Gabriel"]
[Black "Sorensen, Hampus"]
[Result "0-1"]
[TimeControl "15 minutes + 5 seconds per move from move one (Round 1 - 4) / 90 minutes + 30 seconds per move from move one (Round 5 - 8)"]
[WhiteFideId "1720791"]
[BlackFideId "8703884"]
[WhiteElo "2024"]
[BlackElo "2243"]

1. d4 {[%clk 01:30:22]} {[%emt 00:00:37]} d5 {[%clk 01:30:49]} {[%emt
00:00:12]} 2. Nf3 {[%clk 01:30:29]} {[%emt 00:00:22]} Nf6 {[%clk 01:30:53]}
{[%emt 00:00:26]} 3. c4 {[%clk 01:30:53]} {[%emt 00:00:05]} c6 {[%clk
01:31:03]} {[%emt 00:00:20]} 4. e3 {[%clk 01:30:44]} {[%emt 00:00:39]} e6
{[%clk 01:30:35]} {[%emt 00:00:57]} 5. Nc3 {[%clk 01:31:05]} {[%emt 00:00:10]}
Nbd7 {[%clk 01:30:36]} {[%emt 00:00:29]} 6. Qc2 {[%clk 01:31:07]} {[%emt
00:00:28]} Bd6 {[%clk 01:29:55]} {[%emt 00:01:11]} 7. b3 {[%clk 01:29:42]}
{[%emt 00:01:55]} O-O {[%clk 01:24:52]} {[%emt 00:05:31]} 8. Bb2 {[%clk
01:29:18]} {[%emt 00:00:56]} b6 {[%clk 01:21:11]} {[%emt 00:04:11]} 9. Bd3
{[%clk 01:28:56]} {[%emt 00:00:52]} Bb7 {[%clk 01:20:06]} {[%emt 00:01:35]} 10.
O-O {[%clk 01:29:07]} {[%emt 00:00:18]} h6 {[%clk 01:16:38]} {[%emt 00:03:58]}
11. h3 {[%clk 01:29:28]} {[%emt 00:00:10]} c5 {[%clk 01:10:45]} {[%emt
00:06:24]} 0-1

[Event "Kvibergspelen 2018"]
[Site "Prioritet Serneke Arena, Krutvagen 2, Gothenburg, Sweden"]
[Date "2018.04.21"]
[Round "5.11"]
[White "Andersson, Kjell-Ake"]
[Black "Nilsson, Anders"]
[Result "0-1"]
[TimeControl "15 minutes + 5 seconds per move from move one (Round 1 - 4) / 90 minutes + 30 seconds per move from move one (Round 5 - 8)"]
[BlackTitle "CM"]
[WhiteFideId "1713825"]
[BlackFideId "1705423"]
[WhiteElo "1921"]
[BlackElo "2217"]

1. Nf3 {[%clk 01:30:35]} {[%emt 00:00:22]} b6 {[%clk 01:30:44]} {[%emt
00:00:18]} 2. g3 {[%clk 01:30:05]} {[%emt 00:01:00]} Bb7 {[%clk 01:31:10]}
{[%emt 00:00:05]} 3. Bg2 {[%clk 01:30:20]} {[%emt 00:00:13]} c5 {[%clk
01:30:57]} {[%emt 00:00:44]} 4. c4 {[%clk 01:29:38]} {[%emt 00:01:12]} g6
{[%clk 01:30:19]} {[%emt 00:01:08]} 5. d4 {[%clk 01:26:03]} {[%emt 00:04:05]}
cxd4 {[%clk 01:22:17]} {[%emt 00:08:32]} 6. Qxd4 {[%clk 01:26:22]} {[%emt
00:00:10]} Nf6 {[%clk 01:22:32]} {[%emt 00:00:15]} 7. b3 {[%clk 01:23:21]}
{[%emt 00:03:29]} Bg7 {[%clk 01:19:52]} {[%emt 00:03:12]} 8. Bb2 {[%clk
01:22:36]} {[%emt 00:01:13]} Nc6 {[%clk 01:10:23]} {[%emt 00:10:02]} 9. Qd1
{[%clk 01:19:16]} {[%emt 00:03:47]} O-O {[%clk 01:00:23]} {[%emt 00:10:32]} 10.
O-O {[%clk 01:18:07]} {[%emt 00:01:38]} a6 {[%clk 00:58:31]} {[%emt 00:02:23]}
11. Nc3 {[%clk 01:15:47]} {[%emt 00:02:49]} Ne4 {[%clk 00:41:17]} {[%emt
00:17:41]} 12. Qc1 {[%clk 01:13:59]} {[%emt 00:02:20]} Bxc3 {[%clk 00:36:44]}
{[%emt 00:05:05]} 13. Bxc3 {[%clk 01:14:11]} {[%emt 00:00:18]} Nxc3 {[%clk
00:37:12]} {[%emt 00:00:02]} 14. Qxc3 {[%clk 01:14:27]} {[%emt 00:00:13]} Qc7
{[%clk 00:31:47]} {[%emt 00:05:55]} 15. Rfd1 {[%clk 01:11:47]} {[%emt
00:03:09]} d6 {[%clk 00:27:15]} {[%emt 00:05:03]} 16. Nd4 {[%clk 01:09:38]}
{[%emt 00:02:38]} Ne5 {[%clk 00:25:57]} {[%emt 00:01:49]} 17. Rac1 {[%clk
01:07:12]} {[%emt 00:02:54]} Bxg2 {[%clk 00:25:45]} {[%emt 00:00:44]} 18. Kxg2
{[%clk 01:07:33]} {[%emt 00:00:09]} Rfc8 {[%clk 00:25:54]} {[%emt 00:00:22]} 19.
Qd2 {[%clk 01:06:35]} {[%emt 00:01:26]} Qb7+ {[%clk 00:24:03]} {[%emt
00:02:23]} 20. f3 {[%clk 01:03:25]} {[%emt 00:03:39]} Rc5 {[%clk 00:24:09]}
{[%emt 00:00:25]} 21. e4 {[%clk 01:02:41]} {[%emt 00:01:14]} Rac8 {[%clk
00:24:08]} {[%emt 00:00:31]} 22. Qh6 {[%clk 00:57:07]} {[%emt 00:06:04]} Qd7
{[%clk 00:19:14]} {[%emt 00:05:24]} 23. h4 {[%clk 00:51:44]} {[%emt 00:05:54]}
Qe8 {[%clk 00:15:12]} {[%emt 00:04:32]} 24. h5 {[%clk 00:49:29]} {[%emt
00:02:46]} Qf8 {[%clk 00:14:30]} {[%emt 00:01:12]} 25. Qxf8+ {[%clk 00:48:52]}
{[%emt 00:01:07]} Kxf8 {[%clk 00:14:57]} {[%emt 00:00:03]} 26. hxg6 {[%clk
00:47:59]} {[%emt 00:01:23]} hxg6 {[%clk 00:15:19]} {[%emt 00:00:08]} 27. a4
{[%clk 00:47:11]} {[%emt 00:01:18]} Kg7 {[%clk 00:14:56]} {[%emt 00:00:53]} 28.
f4 {[%clk 00:43:35]} {[%emt 00:04:05]} Ng4 {[%clk 00:14:26]} {[%emt 00:00:59]}
29. Kf3 {[%clk 00:43:17]} {[%emt 00:00:48]} Nh2+ {[%clk 00:14:24]} {[%emt
00:00:33]} 30. Kg2 {[%clk 00:43:19]} {[%emt 00:00:26]} Ng4 {[%clk 00:14:52]}
{[%emt 00:00:05]} 31. Kf3 {[%clk 00:43:39]} {[%emt 00:00:09]} Nf6 {[%clk
00:15:21]} {[%emt 00:00:01]} 32. Ne2 {[%clk 00:42:27]} {[%emt 00:01:42]} Rh8
{[%clk 00:11:44]} {[%emt 00:04:08]} 33. Rh1 {[%clk 00:38:05]} {[%emt 00:04:50]}
Rch5 {[%clk 00:10:42]} {[%emt 00:01:34]} 34. Rxh5 {[%clk 00:36:29]} {[%emt
00:02:06]} Rxh5 {[%clk 00:11:10]} {[%emt 00:00:02]} 35. Nc3 {[%clk 00:35:44]}
{[%emt 00:01:14]} g5 {[%clk 00:09:53]} {[%emt 00:01:47]} 36. fxg5 {[%clk
00:33:12]} {[%emt 00:03:03]} Nd7 {[%clk 00:09:08]} {[%emt 00:01:14]} 37. Kg4
{[%clk 00:30:47]} {[%emt 00:02:52]} Rh2 {[%clk 00:08:35]} {[%emt 00:01:06]} 38.
Nd5 {[%clk 00:30:03]} {[%emt 00:01:13]} Ne5+ {[%clk 00:08:47]} {[%emt
00:00:19]} 0-1

[Event "Kvibergspelen 2018"]
[Site "Prioritet Serneke Arena, Krutvagen 2, Gothenburg, Sweden"]
[Date "2018.04.21"]
[Round "5.12"]
[White "Johansson, Gunnar"]
[Black "Rasti, Arvin"]
[Result "1/2-1/2"]
[TimeControl "15 minutes + 5 seconds per move from move one (Round 1 - 4) / 90 minutes + 30 seconds per move from move one (Round 5 - 8)"]
[WhiteFideId "1703501"]
[BlackFideId "1741160"]
[WhiteElo "2212"]
[BlackElo "1920"]

1. d4 {[%clk 01:30:56]} {[%emt 00:00:01]} d5 {[%clk 01:30:45]} {[%emt
00:00:16]} 2. c4 {[%clk 01:31:18]} {[%emt 00:00:07]} c6 {[%clk 01:31:10]}
{[%emt 00:00:05]} 3. Nc3 {[%clk 01:31:28]} {[%emt 00:00:20]} Nf6 {[%clk
01:31:32]} {[%emt 00:00:09]} 4. e3 {[%clk 01:31:10]} {[%emt 00:00:49]} a6
{[%clk 01:31:47]} {[%emt 00:00:15]} 5. Qc2 {[%clk 01:31:31]} {[%emt 00:00:08]}
g6 {[%clk 01:32:11]} {[%emt 00:00:06]} 6. Bd3 {[%clk 01:31:26]} {[%emt
00:00:34]} Bg7 {[%clk 01:32:24]} {[%emt 00:00:18]} 7. Nf3 {[%clk 01:31:43]}
{[%emt 00:00:14]} Bg4 {[%clk 01:32:30]} {[%emt 00:00:24]} 8. Ne5 {[%clk
01:31:56]} {[%emt 00:00:17]} Be6 {[%clk 01:32:54]} {[%emt 00:00:07]} 9. O-O
{[%clk 01:31:23]} {[%emt 00:01:02]} Nfd7 {[%clk 01:28:21]} {[%emt 00:05:03]} 10.
cxd5 {[%clk 01:23:36]} {[%emt 00:08:19]} cxd5 {[%clk 01:27:57]} {[%emt
00:00:54]} 11. f4 {[%clk 01:20:07]} {[%emt 00:03:59]} Nxe5 {[%clk 01:21:40]}
{[%emt 00:06:47]} 12. fxe5 {[%clk 01:19:52]} {[%emt 00:00:45]} Nc6 {[%clk
01:20:55]} {[%emt 00:01:15]} 13. a3 {[%clk 01:15:01]} {[%emt 00:05:22]} Rc8
{[%clk 01:17:12]} {[%emt 00:04:12]} 14. b4 {[%clk 01:11:15]} {[%emt 00:04:16]}
Nxe5 {[%clk 01:03:19]} {[%emt 00:14:22]} 15. dxe5 {[%clk 01:09:38]} {[%emt
00:02:08]} d4 {[%clk 01:02:55]} {[%emt 00:00:54]} 16. Be4 {[%clk 00:56:28]}
{[%emt 00:13:39]} Rxc3 {[%clk 00:59:30]} {[%emt 00:03:56]} 17. Qa4+ {[%clk
00:47:53]} {[%emt 00:09:05]} Bd7 {[%clk 00:57:03]} {[%emt 00:02:57]} 18. Qd1
{[%clk 00:48:15]} {[%emt 00:00:08]} Bb5 {[%clk 00:56:43]} {[%emt 00:00:50]} 19.
Re1 {[%clk 00:47:14]} {[%emt 00:01:31]} Bh6 {[%clk 00:53:10]} {[%emt 00:04:03]}
20. Qxd4 {[%clk 00:40:31]} {[%emt 00:07:14]} Qc7 {[%clk 00:51:16]} {[%emt
00:02:24]} 21. Bb2 {[%clk 00:35:17]} {[%emt 00:05:44]} Rc4 {[%clk 00:45:37]}
{[%emt 00:06:09]} 22. Qd5 {[%clk 00:34:25]} {[%emt 00:01:22]} Qc6 {[%clk
00:44:45]} {[%emt 00:01:21]} 1/2-1/2

[Event "Kvibergspelen 2018"]
[Site "Prioritet Serneke Arena, Krutvagen 2, Gothenburg, Sweden"]
[Date "2018.04.21"]
[Round "5.13"]
[White "Strom-Engdahl, Alexander"]
[Black "Crevatin, Leo"]
[Result "1/2-1/2"]
[TimeControl "15 minutes + 5 seconds per move from move one (Round 1 - 4) / 90 minutes + 30 seconds per move from move one (Round 5 - 8)"]
[WhiteFideId "1741586"]
[BlackFideId "1726307"]
[WhiteElo "1720"]
[BlackElo "2157"]

1. Nf3 {[%clk 01:30:27]} {[%emt 00:00:32]} d5 {[%clk 01:30:59]} {[%emt
00:00:02]} 2. g3 {[%clk 01:30:10]} {[%emt 00:00:46]} Nf6 {[%clk 01:31:24]}
{[%emt 00:00:05]} 3. Bg2 {[%clk 01:28:40]} {[%emt 00:02:00]} c6 {[%clk
01:31:20]} {[%emt 00:00:34]} 4. d4 {[%clk 01:28:19]} {[%emt 00:00:51]} Bf5
{[%clk 01:30:31]} {[%emt 00:01:18]} 5. Bf4 {[%clk 01:26:57]} {[%emt 00:01:53]}
h6 {[%clk 01:30:43]} {[%emt 00:00:18]} 6. h4 {[%clk 01:24:23]} {[%emt
00:03:04]} Qb6 {[%clk 01:28:58]} {[%emt 00:02:13]} 7. Qc1 {[%clk 01:20:38]}
{[%emt 00:04:18]} e6 {[%clk 01:27:38]} {[%emt 00:01:49]} 8. O-O {[%clk
01:19:36]} {[%emt 00:01:33]} c5 {[%clk 01:25:25]} {[%emt 00:02:44]} 9. c3
{[%clk 01:15:50]} {[%emt 00:04:16]} Nc6 {[%clk 01:25:46]} {[%emt 00:00:09]} 10.
Be3 {[%clk 01:12:09]} {[%emt 00:04:11]} Be7 {[%clk 01:21:24]} {[%emt 00:04:52]}
11. Nbd2 {[%clk 01:10:30]} {[%emt 00:02:09]} O-O {[%clk 01:20:55]} {[%emt
00:01:00]} 12. dxc5 {[%clk 01:06:52]} {[%emt 00:04:07]} Bxc5 {[%clk 01:21:19]}
{[%emt 00:00:07]} 13. Bxc5 {[%clk 01:07:03]} {[%emt 00:00:18]} Qxc5 {[%clk
01:21:47]} {[%emt 00:00:02]} 14. Nb3 {[%clk 01:07:10]} {[%emt 00:00:23]} Qb6
{[%clk 01:21:02]} {[%emt 00:01:13]} 15. Nbd4 {[%clk 01:02:01]} {[%emt
00:05:40]} Nxd4 {[%clk 01:19:30]} {[%emt 00:02:04]} 16. Nxd4 {[%clk 01:01:13]}
{[%emt 00:01:17]} Bh7 {[%clk 01:19:28]} {[%emt 00:00:31]} 17. Rd1 {[%clk
00:56:10]} {[%emt 00:05:34]} Rad8 {[%clk 01:16:56]} {[%emt 00:03:02]} 18. e3
{[%clk 00:51:48]} {[%emt 00:04:51]} Rfe8 {[%clk 01:16:13]} {[%emt 00:01:14]} 19.
Bf1 {[%clk 00:50:56]} {[%emt 00:01:21]} e5 {[%clk 01:15:51]} {[%emt 00:00:53]}
20. Nb3 {[%clk 00:50:00]} {[%emt 00:01:26]} Be4 {[%clk 01:12:56]} {[%emt
00:03:25]} 21. Bg2 {[%clk 00:49:28]} {[%emt 00:01:02]} Bf5 {[%clk 01:11:25]}
{[%emt 00:02:01]} 22. c4 {[%clk 00:43:23]} {[%emt 00:06:36]} dxc4 {[%clk
01:10:16]} {[%emt 00:01:39]} 23. Qxc4 {[%clk 00:43:35]} {[%emt 00:00:17]} Rc8
{[%clk 01:10:27]} {[%emt 00:00:19]} 24. Qa4 {[%clk 00:42:45]} {[%emt 00:01:19]}
Rc2 {[%clk 01:09:02]} {[%emt 00:01:55]} 25. Qa3 {[%clk 00:37:08]} {[%emt
00:06:08]} Ng4 {[%clk 01:07:01]} {[%emt 00:02:30]} 26. Rf1 {[%clk 00:27:06]}
{[%emt 00:10:32]} Bd3 {[%clk 00:55:17]} {[%emt 00:12:12]} 27. Qa4 {[%clk
00:27:12]} {[%emt 00:00:26]} Qe6 {[%clk 00:54:28]} {[%emt 00:01:17]} 28. Rac1
{[%clk 00:25:23]} {[%emt 00:02:20]} b5 {[%clk 00:47:28]} {[%emt 00:07:30]} 29.
Qxa7 {[%clk 00:24:02]} {[%emt 00:01:51]} Bxf1 {[%clk 00:47:04]} {[%emt
00:00:54]} 30. Rxc2 {[%clk 00:23:18]} {[%emt 00:01:14]} Bxg2 {[%clk 00:47:21]}
{[%emt 00:00:13]} 31. Kxg2 {[%clk 00:22:22]} {[%emt 00:01:25]} Qd5+ {[%clk
00:47:32]} {[%emt 00:00:18]} 32. f3 {[%clk 00:22:38]} {[%emt 00:00:16]} Ra8
{[%clk 00:47:24]} {[%emt 00:00:36]} 33. Qc5 {[%clk 00:19:24]} {[%emt 00:03:46]}
Qxc5 {[%clk 00:47:17]} {[%emt 00:00:37]} 34. Rxc5 {[%clk 00:19:42]} {[%emt
00:00:11]} Nxe3+ {[%clk 00:47:19]} {[%emt 00:00:28]} 35. Kh3 {[%clk 00:18:57]}
{[%emt 00:01:15]} Nc4 {[%clk 00:42:23]} {[%emt 00:05:27]} 36. Rxb5 {[%clk
00:18:31]} {[%emt 00:00:56]} Rxa2 {[%clk 00:42:41]} {[%emt 00:00:11]} 37. Rc5
{[%clk 00:18:19]} {[%emt 00:00:42]} Rxb2 {[%clk 00:42:42]} {[%emt 00:00:29]} 38.
Rxc4 {[%clk 00:18:03]} {[%emt 00:00:47]} Rxb3 {[%clk 00:43:10]} {[%emt
00:00:01]} 39. Kg2 {[%clk 00:18:07]} {[%emt 00:00:26]} Rb2+ {[%clk 00:43:34]}
{[%emt 00:00:06]} 40. Kh3 {[%clk 00:18:16]} {[%emt 00:00:20]} Re2 {[%clk
00:41:18]} {[%emt 00:02:45]} 41. g4 {[%clk 00:16:51]} {[%emt 00:01:57]} g6
{[%clk 00:40:02]} {[%emt 00:01:47]} 42. g5 {[%clk 00:14:57]} {[%emt 00:02:25]}
Kg7 {[%clk 00:38:59]} {[%emt 00:01:32]} 43. Rc7 {[%clk 00:14:48]} {[%emt
00:00:38]} hxg5 {[%clk 00:37:57]} {[%emt 00:01:32]} 44. hxg5 {[%clk 00:15:06]}
{[%emt 00:00:12]} Kf8 {[%clk 00:37:46]} {[%emt 00:00:41]} 45. Kg3 {[%clk
00:14:54]} {[%emt 00:00:43]} Re1 {[%clk 00:37:16]} {[%emt 00:00:59]} 46. Kf2
{[%clk 00:14:56]} {[%emt 00:00:29]} Ra1 {[%clk 00:35:54]} {[%emt 00:01:52]} 47.
Rc5 {[%clk 00:15:12]} {[%emt 00:00:14]} e4 {[%clk 00:34:06]} {[%emt 00:02:18]}
48. fxe4 {[%clk 00:15:36]} {[%emt 00:00:07]} Ke7 {[%clk 00:34:29]} {[%emt
00:00:05]} 49. Rc7+ {[%clk 00:15:04]} {[%emt 00:01:03]} Ke6 {[%clk 00:34:45]}
{[%emt 00:00:13]} 50. Rc5 {[%clk 00:14:44]} {[%emt 00:00:50]} Ra3 {[%clk
00:34:27]} {[%emt 00:00:47]} 51. Ke2 {[%clk 00:14:53]} {[%emt 00:00:22]} Kd6
{[%clk 00:34:40]} {[%emt 00:00:15]} 52. Rb5 {[%clk 00:15:14]} {[%emt 00:00:11]}
Ra1 {[%clk 00:31:58]} {[%emt 00:03:11]} 53. Ke3 {[%clk 00:14:51]} {[%emt
00:00:53]} Rc1 {[%clk 00:31:10]} {[%emt 00:01:18]} 54. Rb7 {[%clk 00:14:33]}
{[%emt 00:00:49]} Rc7 {[%clk 00:31:30]} {[%emt 00:00:09]} 55. Rxc7 {[%clk
00:13:36]} {[%emt 00:01:28]} Kxc7 {[%clk 00:31:59]} {[%emt 00:00:01]} 56. e5
{[%clk 00:13:47]} {[%emt 00:00:20]} Kd7 {[%clk 00:31:23]} {[%emt 00:01:05]} 57.
Kd4 {[%clk 00:13:54]} {[%emt 00:00:23]} Ke6 {[%clk 00:31:16]} {[%emt 00:00:36]}
58. Ke4 {[%clk 00:14:17]} {[%emt 00:00:08]} Ke7 {[%clk 00:31:19]} {[%emt
00:00:27]} 59. Kd4 {[%clk 00:14:30]} {[%emt 00:00:16]} Kd7 {[%clk 00:31:36]}
{[%emt 00:00:14]} 60. Kd5 {[%clk 00:14:49]} {[%emt 00:00:12]} Ke7 {[%clk
00:32:00]} {[%emt 00:00:05]} 61. Kd4 {[%clk 00:15:03]} {[%emt 00:00:15]} Kd7
{[%clk 00:32:19]} {[%emt 00:00:11]} 62. Kd5 {[%clk 00:15:26]} {[%emt 00:00:08]}
Ke7 {[%clk 00:32:45]} {[%emt 00:00:04]} 1/2-1/2